fUSD/lending_fUSD_20240101
["ID","MTS","AMOUNT","RATE_DAILY","PERIOD"]
[309793297,1704137438299,-417.2868516,0.00035299,4]
[309793298,1704137438309,-176.32,0.00035316,2]
[309793299,1704137438318,-205.06,0.0003535,2]
[309793300,1704137438326,-156.77,0.00035351,2]
[309793301,1704137438336,-156.77,0.0003547,2]
[309793302,1704137438345,-1546.58488923,0.00035534,2]
[309793303,1704137438354,-156.77,0.00035589,2]
[309793304,1704137438363,-1861.0,0.000356,3]
[309793305,1704137438373,-152.44,0.00035616,2]
[309793306,1704137438382,-156.77,0.00035708,2]
[309793307,1704137438391,-154.21,0.00035779,2]
[309793308,1704137438401,-300.0,0.000358,13]
[309793309,1704137438409,-156.77,0.00035826,2]
[309793310,1704137438418,-600.0,0.000359,13]
[309793311,1704137438428,-176.32,0.00035908,2]
[309793312,1704137438437,-156.77,0.00035945,2]
[309793313,1704137438446,-541.45,0.00036008,2]
[309793314,1704137438454,-4746.88969695,0.00036284,2]
[309793315,1704137438464,-2339.05416753,0.00036284,2]
[309793316,1704137438473,-910.7644098,0.00036291,7]
[309793317,1704137438481,-1546.58488923,0.00036291,2]
[309793318,1704137438490,-318.80313376,0.00036291,2]
[309793319,1704137438499,-387.37,0.00036374,2]
[309793320,1704137438508,-387.37,0.00036374,2]
[309793321,1704137438517,-387.37,0.00036374,2]
[309793322,1704137438527,-387.37,0.00036374,2]
[309793324,1704137438536,-175.58441694,0.00036374,2]
[309793326,1704137438545,-2064.82054546,0.00036381,2]
[309793328,1704137438555,-284.04,0.00036383,2]
[309793330,1704137438564,-284.04,0.00036383,2]
[309793332,1704137438573,-284.04,0.00036383,2]
[309793334,1704137438582,-284.04,0.00036383,2]
[309793336,1704137438591,-284.04,0.00036383,2]
[309793338,1704137438600,-284.04,0.00036383,2]
[309793340,1704137438610,-284.04,0.00036383,2]
[309793342,1704137438619,-284.04,0.00036383,2]
[309793343,1704137438628,-284.04,0.00036383,2]
[309793345,1704137438637,-284.04,0.00036383,2]
[309793347,1704137438646,-387.37,0.00036383,2]
[309793349,1704137438656,-676162.5229,0.00036384,2]
[309793351,1704137438666,-20325.08738128,0.00036391,4]
[309793353,1704137438676,-203.69375924,0.00036391,4]
[309793355,1704137438685,-3558.44768603,0.00036391,4]
[309793357,1704137438696,-445.59668688,0.00036391,4]
[309793372,1704137438829,-675.83425205,0.00036391,4]
[309793375,1704137438842,-755.32061912,0.00036391,4]
[309793377,1704137438851,-158.83747841,0.00036391,4]
[309793379,1704137438861,-2560.36415998,0.00036391,4]
[309793381,1704137438870,-317.2685661,0.00036391,2]
[309793383,1704137438880,-155.44851412,0.00036391,4]
[309793385,1704137438889,-1254.14894473,0.00036391,4]
[309793387,1704137438899,-165.15930173,0.00036391,4]
[309793389,1704137438908,-1760.61072916,0.00036391,4]
[309793391,1704137438919,-262.14960985,0.00036392,4]
[309793393,1704137438932,-3421.42016685,0.00036392,4]
[309793395,1704137438941,-1449.38033194,0.00036392,4]
[309793397,1704137438950,-275837.51717715,0.00036393,4]
[309793399,1704137438960,-40270.4881,0.00036394,2]
[309793401,1704137438969,-4218.80552746,0.00036492,4]
[309793403,1704137438978,-410.44,0.00036724,2]
[309793405,1704137438987,-541.45,0.00036986,2]
[309793407,1704137438997,-181.95568222,0.00037001,2]
[309793409,1704137439006,-200.0,0.00037125,2]
[309793411,1704137439016,-167.0,0.00037231,2]
[309793413,1704137439025,-181.95568222,0.00037264,2]
[309793415,1704137439035,-153.84,0.0003739,2]
[309793417,1704137439044,-181.95568222,0.00037526,2]
[309793419,1704137439052,-355.82115078,0.0003763,14]
[309793421,1704137439062,-2339.05416746,0.0003763,2]
[309793423,1704137439071,-910.76440974,0.00037664,8]
[309793425,1704137439079,-1353.82,0.00037692,2]
[309793427,1704137439089,-181.95568222,0.00037789,2]
[309793429,1704137439098,-3878.6295,0.000378,2]
[309793431,1704137439107,-428.5984,0.000378,2]
[309793433,1704137439116,-8211.4301,0.000378,2]
[309793435,1704137439126,-387.37,0.0003789,2]
[309793437,1704137439135,-387.37,0.0003789,2]
[309793439,1704137439144,-2064.82054546,0.00037897,2]
[309793441,1704137439153,-428.96661488,0.00037899,2]
[309793443,1704137439162,-366997.256914,0.000379,2]
[309793445,1704137439171,-541.45,0.00037965,2]
[309793447,1704137439180,-4288.494212,0.00037979,4]
[309793449,1704137439189,-151.90636917,0.00037981,2]
[309793451,1704137439198,-181.95568222,0.00038052,2]
[309793453,1704137439207,-408.81217506,0.000381,2]
[309793455,1704137439216,-154.21,0.00038223,2]
[309793456,1704137439225,-704.0,0.00038226,2]
[309793458,1704137439234,-206.89666977,0.00038236,10]
[309793461,1704137439244,-181.95568222,0.00038314,2]
[309793462,1704137439254,-1000.0,0.00038356,2]
[309793464,1704137439263,-5565.0,0.000384,2]
[309793466,1704137439272,-153.84,0.00038524,2]
[309793468,1704137439282,-166.36912042,0.00038555,2]
[309793470,1704137439291,-181.95568222,0.00038577,2]
[309793472,1704137439300,-200.0,0.00038685,2]
[309793474,1704137439309,-156.99043981,0.000387,4]
[309793476,1704137439318,-166.36912042,0.00038744,2]
[309793478,1704137439327,-387.37,0.0003879,2]
[309793480,1704137439336,-16323.48253687,0.000388,4]
[309793482,1704137439345,-319.26928198,0.00038827,2]
[309793484,1704137439356,-379.66488478,0.00038827,2]
[309793486,1704137439364,-443.26669464,0.00038827,2]
[309793488,1704137439373,-1000.0,0.00038832,10]
[309793490,1704137439382,-181.95568222,0.00038839,2]
[309793492,1704137439391,-256.17096399,0.0003886,10]
[309793494,1704137439400,-215.86974442,0.0003889,10]
[309793496,1704137439409,-151.6256406,0.000389,2]
[309793498,1704137439418,-152.30146472,0.000389,8]
[309793500,1704137439427,-3832.27191832,0.000389,2]
[309793502,1704137439436,-691.211681,0.00038904,14]
[309793504,1704137439445,-91749.3142284,0.00038917,3]
[309793506,1704137439454,-43153.42047847,0.00038927,11]
[309793508,1704137439463,-2157.67102392,0.00038927,10]
[309793510,1704137439473,-942.81239571,0.00038927,11]
[309793512,1704137439482,-166.36912042,0.00038934,2]
[309793514,1704137439491,-541.45,0.00038943,2]
[309793516,1704137439500,-2339.05416746,0.00038976,2]
[309793518,1704137439509,-410.44,0.00038987,2]
[309793520,1704137439518,-1156.98331002,0.00039,2]
[309793522,1704137439528,-351.12,0.00039,2]
[309793525,1704137439537,-8932.5610948,0.00039,4]
[309793527,1704137439546,-196.88379325,0.00039,4]
[309793529,1704137439555,-972.29595147,0.00039,4]
[309793531,1704137439565,-799.70889021,0.00039,4]
[309793533,1704137439575,-155.0,0.00039,2]
[309793535,1704137439584,-151.0,0.00039,7]
[309793537,1704137439593,-151.0,0.00039,7]
[309793539,1704137439602,-309.339311,0.00039,7]
[309793541,1704137439611,-309.339311,0.00039,7]
[309793543,1704137439621,-910.76440974,0.00039036,9]
[309793545,1704137439630,-198.76,0.000391,2]
[309793547,1704137439639,-181.95568222,0.00039102,2]
[309793548,1704137439649,-4898.024,0.00039112,2]
[309793551,1704137439659,-5592.966,0.00039112,2]
[309793552,1704137439668,-2847.773,0.00039112,2]
[309793554,1704137439677,-2647.594,0.00039112,2]
[309793555,1704137439686,-2258.0,0.00039112,2]
[309793557,1704137439696,-6715.477,0.00039112,2]
[309793559,1704137439705,-2890.0,0.00039112,2]
[309793561,1704137439715,-166.36912042,0.00039123,2]
[309793563,1704137439725,-152.44,0.00039178,2]
[309793565,1704137439734,-341.77,0.0003926,2]
[309793567,1704137439744,-296.0,0.00039278,2]
[309793569,1704137439753,-166.36912042,0.00039312,2]
[309793571,1704137439763,-181.95568222,0.00039365,2]
[309793573,1704137439772,-3673.54263331,0.00039425,13]
[309793575,1704137439781,-166.36912042,0.00039501,2]
[309793577,1704137439791,-16220.3844,0.00039525,2]
[309793579,1704137439799,-500.0,0.00039541,2]
[309793581,1704137439809,-155.0,0.00039591,5]
[309793583,1704137439818,-181.95568222,0.00039627,2]
[309793585,1704137439828,-153.84,0.00039657,2]
[309793587,1704137439837,-500.0,0.00039659,2]
[309793589,1704137439846,-387.37,0.0003968,2]
[309793591,1704137439855,-91749.3142284,0.0003969,4]
[309793593,1704137439864,-166.36912042,0.00039691,2]
[309793595,1704137439874,-5566.0,0.000397,2]
[309793596,1704137439883,-900.0,0.000397,14]
[309793598,1704137439892,-150.0,0.00039716,2]
[309793600,1704137439902,-150.0,0.00039751,2]
[309793602,1704137439911,-150.0,0.00039753,2]
[309793605,1704137439921,-150.0,0.00039758,2]
[309793606,1704137439930,-150.0,0.00039762,2]
[309793609,1704137439940,-150.0,0.00039769,2]
[309793610,1704137439949,-978.80191316,0.000398,4]
[309793613,1704137439959,-1200.0,0.000398,14]
[309793614,1704137439970,-150.0,0.00039804,2]
[309793616,1704137439979,-150.0,0.00039805,2]
[309793618,1704137439988,-150.0,0.00039811,2]
[309793620,1704137439997,-150.0,0.00039811,2]
[309793622,1704137440007,-150.0,0.00039811,2]
[309793624,1704137440016,-150.0,0.00039819,2]
[309793626,1704137440025,-150.0,0.00039823,2]
[309793628,1704137440035,-150.0,0.00039829,2]
[309793629,1704137440043,-150.0,0.00039829,2]
[309793630,1704137440052,-197.64559856,0.00039844,31]
[309793631,1704137440061,-269.52648563,0.00039845,2]
[309793632,1704137440070,-150.0,0.00039847,2]
[309793633,1704137440078,-150.0,0.0003985,2]
[309793634,1704137440087,-150.0,0.00039854,2]
[309793635,1704137440096,-150.0,0.00039857,2]
[309793636,1704137440105,-150.0,0.0003986,2]
[309793637,1704137440113,-150.0,0.00039862,2]
[309793638,1704137440122,-150.0,0.0003988,2]
[309793639,1704137440131,-166.36912042,0.0003988,2]
[309793641,1704137440140,-150.0,0.00039889,2]
[309793643,1704137440149,-181.95568222,0.0003989,2]
[309793645,1704137440158,-300.910335,0.0003989,7]
[309793647,1704137440167,-151.0,0.0003989,7]
[309793649,1704137440176,-151.0,0.0003989,7]
[309793651,1704137440185,-151.0,0.0003989,7]
[309793653,1704137440194,-151.0,0.0003989,7]
[309793655,1704137440203,-151.0,0.0003989,7]
[309793657,1704137440213,-339.555811,0.0003989,7]
[309793659,1704137440224,-339.555811,0.0003989,7]
[309793661,1704137440233,-151.0,0.0003989,7]
[309793663,1704137440242,-151.0,0.0003989,7]
[309793665,1704137440252,-156.444716,0.0003989,7]
[309793667,1704137440262,-45919.57965579,0.000399,3]
[309793670,1704137440284,-21077.44087948,0.000399,3]
[309793699,1704137441583,-830.38855113,0.00038927,11]
[309793700,1704137441593,-151.0,0.00039,7]
[309793702,1704137441722,-6812.60206873,0.000399,3]
[309793759,1704137444021,-31640.34491462,0.000399,3]
[309793774,1704137446184,-1000.0,0.00039899,4]
[309793775,1704137446194,-1403.81635711,0.00039899,4]
[309793776,1704137446298,-542.78897267,0.00039899,4]
[309793777,1704137446308,-81.70457325,0.00039899,2]
[309793778,1704137446319,-73.29542675,0.00039899,2]
[309793779,1704137446338,-525.98436533,0.00039899,2]
[309793780,1704137446354,-473.31745949,0.00039899,2]
[309793781,1704137446375,-2180.7398078,0.00039899,2]
[309793782,1704137446386,-389.61663198,0.00039899,4]
[309793783,1704137446396,-230880.52707637,0.000399,3]
[309793798,1704137685736,250.0,0.000192,2]
[309793799,1704138119538,-382.72903622,0.00023299,2]
[309793800,1704138119563,-217.27096378,0.000233,2]
[309793801,1704138183983,-282.72903622,0.000233,2]
[309793802,1704138184003,-172.42000384,0.000233,2]
[309793803,1704138184025,-172.42000384,0.000233,2]
[309793804,1704138184045,-300.0,0.000239,2]
[309793805,1704138184065,-690.57856772,0.00025,2]
[309793806,1704138184086,-250.0,0.00027,3]
[309793807,1704138184106,-1008.228,0.000272,2]
[309793808,1704138184126,-181.95568222,0.000273,2]
[309793809,1704138184146,-18728.0,0.00027397,4]
[309793810,1704138184165,-829.6535876,0.000274,2]
[309793811,1704138184184,-150.99,0.000274,2]
[309793812,1704138184203,-300.0,0.00029,3]
[309793813,1704138184222,-769.3,0.00029,2]
[309793814,1704138184241,-499.99,0.00029,2]
[309793815,1704138184261,-350.0,0.00031,3]
[309793816,1704138184281,-400.0,0.00033,3]
[309793817,1704138184301,-1000.0,0.00034,4]
[309793818,1704138184321,-379.19,0.00035229,2]
[309793819,1704138184341,-340.33211,0.000356,14]
[309793820,1704138184362,-12908.0,0.000356,3]
[309793821,1704138184381,-2453.94187957,0.00036283,2]
[309793822,1704138184400,-2832.27112899,0.00036284,2]
[309793825,1704138564451,-1000.0,0.00035654,4]
[309793826,1704138564472,-380.75,0.00035655,2]
[309793827,1704138564493,-4433.16467101,0.00036284,2]
[309793828,1704138564516,-200.0,0.00036284,2]
[309793829,1704138564537,-207.39697956,0.00036451,2]
[309793830,1704138564558,-150.0,0.00036551,2]
[309793831,1704138564581,-207.39697938,0.00036633,2]
[309793832,1704138564612,-242.19,0.00036733,2]
[309793833,1704138564639,-422.4,0.00036771,2]
[309793834,1704138564660,-207.39697938,0.00036814,2]
[309793835,1704138564682,-4288.494212,0.00036979,4]
[309793836,1704138564704,-207.39697938,0.00036996,2]
[309793837,1704138564725,-1347.98228686,0.00037,20]
[309793838,1704138564745,-174.04,0.00037167,2]
[309793839,1704138564766,-250.0,0.00037171,2]
[309793840,1704138564786,-207.39697938,0.00037177,2]
[309793841,1704138564806,-2000.0,0.00037188,2]
[309793842,1704138564828,-23900.0,0.00037196,2]
[309793843,1704138564849,-161.61,0.00037213,15]
[309793844,1704138564871,-12.38393305,0.00037225,2]
[309793875,1704138632332,-501.8578312,0.00037225,2]
[309793876,1704138632344,-358.95823575,0.00037225,2]
[309793877,1704138632354,-200.0,0.00037225,2]
[309793878,1704138632363,-144.36213838,0.00037225,10]
[309793879,1704138632375,-711.48,0.00037225,10]
[309793880,1704138632387,-345.13499995,0.00037225,10]
[309793881,1704138632464,-588.94638895,0.00037225,10]
[309793882,1704138632534,-294.78562219,0.00037225,10]
[309793883,1704138632546,-621.33469212,0.00037225,10]
[309793884,1704138632558,-2293.95615841,0.00037225,10]
[309793885,1704138632567,-254.54,0.00037237,2]
[309793886,1704138632577,-691.211681,0.0003726,14]
[309793887,1704138632586,-207.39697938,0.00037359,2]
[309793888,1704138632596,-711.48,0.00037423,4]
[309793889,1704138632606,-239.71386422,0.00037424,4]
[309793890,1704138632618,-262.14396698,0.00037424,4]
[309793892,1704138632627,-500.0,0.00037522,2]
[309793894,1704138632637,-723.22203299,0.00037522,2]
[309793897,1704138632648,-276.76796701,0.00037522,2]
[309793898,1704138632657,-73.94703299,0.0003754,2]
[309793899,1704138632672,-133.44994639,0.0003754,2]
[309793900,1704138632681,-617.57,0.00037541,2]
[309793901,1704138632691,-420.42,0.00037544,2]
[309793902,1704138632700,-152.68,0.0003763,2]
[309793903,1704138632709,-156.66,0.00037692,2]
[309793904,1704138632718,-207.39697938,0.00037722,2]
[309793905,1704138632728,-1000.0,0.00037799,2]
[309793906,1704138632738,-1000.0,0.00037799,2]
[309793907,1704138632748,-1000.0,0.00037799,2]
[309793908,1704138632758,-1000.0,0.00037799,2]
[309793909,1704138632767,-1000.0,0.00037799,2]
[309793910,1704138632778,-207.39697938,0.00037903,2]
[309793911,1704138632787,-380.75,0.00037919,2]
[309793912,1704138632797,-167.0,0.00037934,2]
[309793913,1704138632807,-205.06,0.00037967,2]
[309793914,1704138632817,-151.90636917,0.00037981,2]
[309793915,1704138632828,-231.76,0.00038014,2]
[309793916,1704138632838,-662.08,0.00038068,2]
[309793917,1704138632848,-207.39697938,0.00038085,2]
[309793918,1704138632857,-500.0,0.000381,2]
[309793919,1704138632870,-1776.6,0.00038156,5]
[309793920,1704138632881,-207.39697938,0.00038266,2]
[309793921,1704138632891,-715.9183,0.000383,2]
[309793922,1704138632902,-691.211681,0.00038356,14]
[309793923,1704138632913,-545.18942606,0.000384,28]
[309793924,1704138632924,-5565.0,0.000384,2]
[309793925,1704138632934,-207.39697938,0.00038448,2]
[309793926,1704138632943,-420.42,0.00038522,2]
[309793927,1704138632953,-207.39697938,0.00038629,2]
[309793928,1704138632963,-200.0,0.00038685,2]
[309793929,1704138632974,-156.99043981,0.000387,4]
[309793930,1704138632984,-207.39697938,0.00038811,2]
[309793931,1704138632995,-609.11806592,0.00038827,2]
[309793932,1704138633029,-255.04033408,0.00038827,2]
[309793933,1704138633043,-5.02876592,0.00038851,2]
[309793999,1704138645590,-1000.0,0.0003798,4]
[309794000,1704138645599,-151.90636918,0.00037981,2]
[309794001,1704138645609,-160.14123408,0.00038851,2]
[309794002,1704138645618,-3248.3411309,0.00038851,2]
[309794003,1704138645627,-1000.0,0.00038909,10]
[309794004,1704138645636,-812.17108657,0.00038909,10]
[309794006,1704138645645,-194.28276998,0.00038909,10]
[309794008,1704138645654,-185.8,0.00038917,2]
[309794010,1704138645664,-382.03509261,0.00038925,4]
[309794011,1704138645673,-271.76114414,0.00038925,4]
[309794012,1704138645682,-399.92739862,0.00038925,4]
[309794013,1704138645691,-912.74277067,0.00038925,4]
[309794014,1704138645700,-1347.98228686,0.00038925,20]
[309794015,1704138645710,-399.60627546,0.00038926,60]
[309794016,1704138645718,-429.23158693,0.00038926,4]
[309794017,1704138645730,-313.21022478,0.00038926,4]
[309794018,1704138645741,-877.13641077,0.00038926,4]
[309794019,1704138645752,-254.65044569,0.00038926,4]
[309794020,1704138645763,-4819.03887836,0.00038926,4]
[309794021,1704138645775,-427.10354647,0.00038926,4]
[309794022,1704138645786,-835.04991627,0.00038926,4]
[309794023,1704138645798,-420.00225476,0.00038926,4]
[309794024,1704138645816,-1139.093155,0.00038926,4]
[309794025,1704138645827,-5987.12392444,0.00038926,4]
[309794026,1704138645838,-821.8421934,0.00038926,4]
[309794027,1704138645848,-6960.9615006,0.00038927,11]
[309794028,1704138645859,-1754.64388193,0.00038927,11]
[309794029,1704138645870,-327.24074744,0.00038927,11]
[309794030,1704138645881,-401.8052054,0.00038927,11]
[309794031,1704138645894,-5240.22865985,0.00038927,11]
[309794033,1704138645906,-325.68999966,0.00038927,11]
[309794034,1704138645918,-435.21808693,0.00038927,11]
[309794035,1704138645930,-3385.37201735,0.00038927,11]
[309794036,1704138645941,-629.3985437,0.00038927,11]
[309794037,1704138645951,-2461.04618058,0.00038927,11]
[309794042,1704138645974,-3861.55940697,0.00038927,11]
[309794044,1704138645983,-1860.74979613,0.00038927,11]
[309794046,1704138645995,-7875.50722066,0.00038927,11]
[309794068,1704138646777,-13433.28221584,0.00038927,11]
[309794074,1704138646818,-666.74715128,0.00038927,11]
[309794075,1704138646827,-207.39697938,0.00038992,2]
[309794077,1704138646837,-972.29595147,0.00039,4]
[309794079,1704138646846,-297.9565972,0.00039,2]
[309794081,1704138646858,-314.72943807,0.00039,2]
[309794083,1704138646870,-544.95,0.00039,2]
[309794098,1704138646881,-267.34041878,0.00039,2]
[309794100,1704138647016,-196.88379325,0.00039,4]
[309794102,1704138647026,-328.29080217,0.00039,4]
[309794104,1704138647039,-471.41808804,0.00039,4]
[309794106,1704138647054,-6177.55656955,0.00039,4]
[309794109,1704138647065,-2755.00452525,0.00039,4]
[309794111,1704138647074,-175.64,0.00039,2]
[309794113,1704138647083,-443.55109155,0.00039,2]
[309794115,1704138647092,-155.0,0.00039,2]
[309794117,1704138647101,-1871.24333404,0.00039,2]
[309794119,1704138647110,-161.93748225,0.0003907,2]
[309794121,1704138647121,-24.12251775,0.0003907,2]
[309794122,1704138647131,-343.0089503,0.000391,2]
[309794124,1704138647142,-584.32499999,0.000391,2]
[309794151,1704138670590,652.0,0.00023,2]
[309794152,1704138670621,99070.52520187,0.00023,2]
[309794153,1704138679263,929.47479813,0.00021,2]
[309794154,1704138679296,247.72348587,0.00021,2]
[309794155,1704138692543,691.52286638,0.0001,2]
[309794156,1704138693315,616.95437067,0.00022,2]
[309794157,1704138694816,166.36159323,0.0002203,2]
[309794158,1704138714292,17040.09477554,6.94e-05,2]
[309794159,1704138715746,607.84424272,0.0002203,2]
[309794160,1704138721237,266.12159117,0.00019827,2]
[309794161,1704138733752,558.84336326,0.0002203,2]
[309794162,1704138739248,266.12159117,0.00019827,2]
[309794163,1704138759251,266.12159117,0.00019827,2]
[309794165,1704138777240,266.12159117,0.00017844,2]
[309794166,1704138782932,1542.97354894,0.00022,2]
[309794167,1704138799249,244.66841108,0.00017844,2]
[309794327,1704139834220,-429.935,0.00027181,2]
[309794328,1704139834333,-443.96001497,0.00027181,2]
[309794331,1704139834347,-325.21105276,0.00027181,2]
[309794333,1704139834368,-1008.228,0.00027182,2]
[309794335,1704139834378,-300.0,0.00027182,2]
[309794337,1704139834388,-244.55533791,0.00027278,2]
[309794364,1704139839741,-2935.48629471,0.00027278,2]
[309794365,1704139839750,-172.42000384,0.00027279,2]
[309794366,1704139839760,-172.42000384,0.00027279,2]
[309794367,1704139839770,-33.95157768,0.00027279,2]
[309794368,1704139839798,-661.22229884,0.00027279,2]
[309794369,1704139839807,-262.40044137,0.00027279,2]
[309794370,1704139839816,-387.83002766,0.000273,2]
[309794371,1704139839855,-259.77567468,0.000273,2]
[309794372,1704139839865,-159.61219481,0.00027399,2]
[309794373,1704139839874,-690.57856772,0.00027498,2]
[309794374,1704139839884,-352.49785563,0.00027499,2]
[309794375,1704139839894,-1046.07113876,0.000275,2]
[309794376,1704139839905,-564.770259,0.000275,2]
[309794381,1704139840089,-2875.84371778,0.000275,2]
[309794383,1704139840101,-682.63507227,0.000275,2]
[309794386,1704139840112,-1221.63310064,0.000275,2]
[309794388,1704139840124,-599.91117474,0.000275,2]
[309794391,1704139840309,-1285.22235789,0.000275,2]
[309794392,1704139840325,-951.26132272,0.000275,2]
[309794407,1704139840873,-777.53246059,0.000275,2]
[309794409,1704139840883,-159.6121947,0.00028439,2]
[309794411,1704139840892,-159.6121947,0.00029479,2]
[309794413,1704139840901,-1238.75171233,0.0003,30]
[309794416,1704139840911,-159.6121947,0.00030519,2]
[309794417,1704139840920,-159.6121947,0.00031559,2]
[309794419,1704139840930,-379.08,0.00031562,2]
[309794421,1704139840940,-51228.6027404,0.00032,4]
[309794423,1704139840949,-534.45756851,0.00032151,2]
[309794425,1704139840959,-236.97,0.00032584,2]
[309794428,1704139840969,-159.6121947,0.00032599,2]
[309794430,1704139840978,-2000.0,0.00032716,2]
[309794432,1704139840987,-1353.82,0.00032722,2]
[309794434,1704139840995,-1576.13605184,0.00032742,2]
[309794436,1704139841007,-581.6622,0.00032742,2]
[309794510,1704139842449,-4848.34169761,0.00032742,2]
[309794511,1704139842559,-503.981451,0.00032742,2]
[309794512,1704139842618,-261.28269064,0.00032742,2]
[309794513,1704139842677,-2439.26149418,0.00032742,2]
[309794523,1704139846052,-615.1736429,0.00032742,2]
[309794524,1704139846064,-3980.18448593,0.00032742,2]
[309794526,1704139846726,-261.60174887,0.00032742,2]
[309794527,1704139846784,-4372.00858403,0.00032742,2]
[309794528,1704139846807,-4232.01912866,0.00032742,2]
[309794529,1704139846828,-228.34682434,0.00032742,2]
[309794530,1704139846838,-162.89,0.00032753,2]
[309794531,1704139846848,-181.42329185,0.00032867,2]
[309794532,1704139846863,-18.57670815,0.00032867,2]
[309794533,1704139846874,-727.66,0.00032991,2]
[309794534,1704139846883,-155.2,0.0003305,2]
[309794535,1704139846894,-529.67,0.00033069,2]
[309794536,1704139846903,-182.11,0.00033116,2]
[309794537,1704139846913,-152.78,0.00033217,2]
[309794538,1704139846923,-182.11,0.00033307,2]
[309794539,1704139846932,-400.46,0.00033329,2]
[309794540,1704139846941,-161.61,0.00033375,15]
[309794541,1704139846950,-416.78911708,0.00033491,4]
[309794542,1704139846960,-362.82049166,0.00033492,4]
[309794543,1704139846969,-182.11,0.00033499,2]
[309794544,1704139846978,-159.6121947,0.00033639,2]
[309794545,1704139846987,-182.11,0.0003369,2]
[309794546,1704139846996,-379.08,0.00033826,2]
[309794547,1704139847005,-182.11,0.00033881,2]
[309794548,1704139847015,-162.89,0.00033965,2]
[309794550,1704139847024,-1000.0,0.00034,4]
[309794552,1704139847033,-182.11,0.00034073,2]
[309794553,1704139847042,-152.78,0.00034082,2]
[309794555,1704139847052,-470.33,0.00034242,2]
[309794557,1704139847061,-165.41,0.00034261,2]
[309794559,1704139847070,-182.11,0.00034264,2]
[309794561,1704139847079,-400.46,0.00034307,2]
[309794564,1704139847089,-200.0,0.0003432,2]
[309794566,1704139847098,-182.11,0.00034455,2]
[309794568,1704139847108,-2029.93707574,0.000345,2]
[309794572,1704139847133,-485.53244718,0.000345,2]
[309794574,1704139847143,-182.11,0.00034647,2]
[309794576,1704139847153,-47.82894163,0.00034679,2]
[309794579,1704139847165,-111.78325307,0.00034679,2]
[309794582,1704139847174,-242.209068,0.00034796,2]
[309794585,1704139847184,-917.08488555,0.00034797,2]
[309794595,1704139847226,-623.05541525,0.00034797,2]
[309794597,1704139847235,-666.240101,0.00034798,2]
[309794598,1704139847245,-177.54942421,0.000348,2]
[309794601,1704139847255,-796.91885854,0.000348,7]
[309794603,1704139847265,-343.60179817,0.000348,2]
[309794604,1704139847275,-182.11,0.00034838,2]
[309794605,1704139847285,-193.68,0.00034889,2]
[309794606,1704139847295,-190.66924345,0.0003489,2]
[309794607,1704139847463,-193.68,0.0003489,2]
[309794608,1704139847474,-193.68,0.0003489,2]
[309794609,1704139847484,-155.44851412,0.00034896,4]
[309794610,1704139847494,-675.83425205,0.00034896,4]
[309794611,1704139847505,-158.83747841,0.00034896,4]
[309794612,1704139847515,-317.2685661,0.00034896,2]
[309794613,1704139847524,-755.32061912,0.00034896,4]
[309794614,1704139847534,-203.69375924,0.00034896,4]
[309794615,1704139847544,-1760.61072916,0.00034896,4]
[309794616,1704139847555,-20325.08738128,0.00034896,4]
[309794617,1704139847565,-2560.36415998,0.00034896,4]
[309794618,1704139847574,-1016.64858306,0.00034896,4]
[309794619,1704139847584,-344.17340315,0.00034896,4]
[309794620,1704139847593,-3558.44768603,0.00034897,4]
[309794621,1704139847602,-445.59668688,0.00034898,4]
[309794622,1704139847612,-165.15930173,0.00034898,4]
[309794623,1704139847621,-1449.38033194,0.00034898,4]
[309794624,1704139847631,-4218.80552746,0.00034899,4]